bitfinex/quotes_ETHUSD_20251128
["timestamp","ask_amount","ask_price","bid_price","bid_amount"]
[1764340964314,0.6522,3058.9,3058.1,0.1865]
[1764340964487,0.1952,3058.9,3058.1,0.1865]
[1764340964878,0.457,3058.8,3058.0,0.001]
[1764340965387,0.44835614,3059.2,3058.2,6.53979464]
[1764340965707,0.215,3059.2,3058.2,3.94262678]
[1764340965903,0.215,3059.2,3058.2,6.53979464]
[1764340966075,0.1,3059.1,3058.2,6.53979464]
[1764340966275,0.215,3059.1,3058.2,9.80969196]
[1764340966473,0.215,3059.1,3058.2,6.53979464]
[1764340966907,0.1952,3058.3,3058.0,0.001]
[1764340967106,0.1,3058.4,3058.0,0.001]
[1764340967406,0.1952,3058.4,3058.0,0.001]
[1764340967574,0.457,3058.3,3058.0,0.001]
[1764340968177,0.215,3058.2,3058.0,0.001]
[1764340968406,0.1952,3058.4,3058.0,0.001]
[1764340968771,0.215,3058.3,3058.0,0.001]
[1764340968973,0.215,3058.5,3058.0,0.001]
[1764340969172,0.1,3058.4,3058.0,0.001]
[1764340969408,0.557,3058.4,3058.0,0.001]
[1764340969906,3.8266874,3058.4,3058.0,0.001]
[1764340970141,0.1,3058.1,3058.0,0.001]
[1764340970620,0.557,3058.1,3058.0,0.001]
[1764340970787,0.85619027,3058.1,3058.0,0.001]
[1764340970981,1.07119027,3058.1,3058.0,0.001]
[1764340971182,0.772,3058.1,3058.0,0.001]
[1764340971391,0.85585068,3058.1,3058.0,0.001]
[1764340971583,4.34085493,3058.1,3058.0,0.001]
[1764340971889,4.98310012,3058.1,3058.0,0.001]
[1764340972208,1.71309587,3058.1,3058.0,0.001]
[1764340972406,4.67745493,3058.1,3058.0,0.001]
[1764340972606,1.40745068,3058.1,3058.0,0.001]
[1764340973109,0.6522,3058.6,3058.0,0.001]
[1764340973280,0.3366,3058.1,3058.0,0.001]
[1764340973481,0.4366,3058.1,3058.0,0.001]
[1764340973676,4.37740425,3058.1,3058.0,0.001]
[1764340974716,7.94581915,3058.1,3056.7,0.46085]
[1764340974916,0.1,3057.7,3056.8,3.27139492]
[1764340975122,0.1,3057.4,3056.8,3.27139492]
[1764340975292,0.215,3057.6,3056.8,6.54278984]
[1764340975495,0.215,3057.6,3056.5,7.26902613]
[1764340975496,0.315,3057.6,3056.5,7.26902613]
[1764340975705,0.04087238,3058.3,3057.5,0.4694]
[1764340976020,0.04087238,3058.3,3056.8,0.94059411]
[1764340976218,3.41053707,3058.5,3056.8,0.94059411]
[1764340976438,3.41053707,3058.5,3056.9,0.405504]
[1764340976439,0.1408697,3058.5,3056.9,0.405504]
[1764340976600,0.1,3058.2,3056.9,0.405504]
[1764340976802,0.215,3058.2,3057.0,0.4621]
[1764340977110,0.0408697,3058.5,3057.1,0.405504]
[1764340977330,0.215,3058.3,3057.1,0.405504]
[1764340977527,0.215,3058.3,3057.3,3.2708599]
[1764340977528,0.04087371,3058.2,3057.3,3.2708599]
[1764340977842,0.1,3058.0,3057.3,3.2708599]
[1764340978049,0.04087772,3057.9,3057.0,3.27111839]
[1764340978200,0.04087772,3057.9,3056.7,1.18769411]
[1764340978400,0.04087772,3057.9,3056.6,0.74555261]
[1764340978401,0.457,3057.8,3056.6,4.01716158]
[1764340978709,0.457,3057.8,3056.6,7.00531794]
[1764340978899,0.1,3057.5,3056.6,7.00531794]
[1764340979100,0.1,3057.5,3056.6,3.73370897]
[1764340979328,0.1,3057.5,3056.6,7.00531794]
[1764340980313,0.0408804,3057.7,3056.7,0.4621]
[1764340980542,0.1,3058.5,3056.9,0.405504]
[1764340980719,0.04087104,3058.4,3057.0,0.215]
[1764340981039,0.04087104,3058.4,3057.1,0.405504]
[1764340981419,0.04086703,3058.7,3057.3,0.405504]
[1764340981738,0.1952,3058.9,3057.5,1.13109811]
[1764340981739,0.04086569,3058.8,3057.5,1.13109811]
[1764340981923,0.1,3058.7,3057.6,1.09433569]
[1764340982127,0.04086837,3058.6,3057.6,1.55643569]
[1764340982449,0.04086837,3058.6,3057.0,0.215]
[1764340982450,0.04086837,3058.6,3056.9,0.4621]
[1764340982685,0.04086837,3058.6,3057.0,1.18769411]
[1764340982686,0.1,3058.2,3057.0,1.18769411]
[1764340982842,0.1,3057.9,3056.9,6.7575758]
[1764340983047,0.04087906,3057.8,3057.0,0.4621]
[1764340983205,0.04087906,3057.8,3057.1,0.72196758]
[1764340983759,0.49787104,3058.4,3057.2,6.54193378]
[1764340983959,0.61361754,3058.3,3057.2,6.54193378]
[1764340984139,0.04087371,3058.2,3057.2,6.54193378]
[1764340984509,0.1,3057.7,3056.6,3.27160897]
[1764340984711,0.04088173,3057.6,3056.5,0.001]
[1764340985024,0.29861754,3058.1,3056.5,0.001]
[1764340985025,0.1,3057.1,3056.5,3.27267223]
[1764340985223,0.215,3057.5,3056.5,3.27267223]
[1764340985422,0.1,3057.3,3056.5,3.27270353]
[1764340985628,0.29861754,3057.4,3056.5,6.87164738]
[1764340985940,0.1,3057.1,3056.5,0.32827035]
[1764340986139,0.51417065,3057.3,3056.5,6.54434365]
[1764340986338,0.29917065,3057.3,3056.5,3.27262764]
[1764340986543,3.58575344,3057.4,3056.5,7.00644365]
[1764340986709,1.74320487,3058.7,3056.6,1.18769411]
[1764340986914,8.82868389,3059.1,3056.8,0.405504]
[1764340986915,0.1,3058.3,3056.8,0.405504]
[1764340987114,0.1,3058.3,3057.1,0.72559411]
[1764340987115,0.04087371,3058.2,3057.1,0.72559411]
[1764340987315,0.1,3058.3,3057.3,0.405504]
[1764340987316,0.29913391,3058.3,3057.3,0.405504]
[1764340987537,0.1,3058.3,3057.3,0.405504]
[1764340987741,0.34000495,3058.4,3057.5,6.5412919]
[1764340988042,0.34000495,3058.4,3057.2,7.30522591]
[1764340988043,0.1,3058.1,3057.2,7.30522591]
[1764340988216,0.04087638,3058.0,3057.3,0.75202259]
[1764340988418,0.34001029,3058.0,3057.3,0.75202259]
[1764340988613,0.34001029,3058.0,3057.1,3.27106449]
[1764340988924,0.1,3057.8,3057.1,6.54213838]
[1764340989242,0.34001431,3057.7,3057.1,3.27106449]
[1764340989444,0.29913391,3057.6,3057.1,3.27106449]
[1764340989647,0.40006763,3057.9,3056.8,0.1865]
[1764340989849,0.03665905,3057.8,3056.8,3.4578775]
[1764340990016,0.03665905,3058.1,3056.9,0.49481287]
[1764340990213,0.1952,3058.9,3056.9,0.49481287]
[1764340990214,0.03665905,3058.5,3056.9,1.22040698]
[1764340990443,0.13665905,3058.5,3057.1,0.72559411]
[1764340990628,0.03665905,3058.5,3057.3,0.405504]
[1764340990813,0.1952,3058.9,3057.5,1.13109811]
[1764340990814,0.03665905,3058.8,3057.5,1.13109811]
[1764340991148,0.03665905,3059.1,3057.9,1.13109811]
[1764340991350,0.102,3059.2,3057.9,1.13109811]
[1764340991351,0.002,3059.2,3058.3,0.405504]
[1764340991524,0.002,3059.2,3059.1,0.1923]
[1764340991728,0.002,3059.2,3059.1,0.4073]
[1764340991936,0.002,3059.2,3059.1,4.88312941]
[1764340992137,0.002,3059.2,3059.1,0.91789411]
[1764340992442,0.002,3059.2,3058.2,0.72559411]
[1764340992443,0.1,3059.1,3058.2,0.72559411]
[1764340992616,0.002,3059.2,3058.3,1.20786026]
[1764340992815,0.002,3059.2,3058.4,0.405504]
[1764340993046,0.002,3059.2,3058.3,0.72656026]
[1764340993417,0.002,3059.2,3058.3,1.21836026]
[1764340993617,0.1,3059.1,3058.3,1.21836026]
[1764340993827,0.1,3059.1,3058.4,0.19439544]
[1764340994030,0.002,3059.2,3058.5,6.53915316]
[1764340994231,0.002,3059.2,3058.4,3.95584774]
[1764340994426,0.03865905,3059.2,3058.0,0.597804]
[1764340994628,0.03865905,3059.2,3058.1,6.5400085]
[1764340994949,0.03865905,3059.2,3058.2,0.72559411]
[1764340995160,0.03865905,3059.2,3058.2,1.21739411]
[1764340995448,0.002,3059.2,3058.3,0.897304]
[1764340995653,0.002,3059.2,3058.4,0.215]
[1764340995847,0.002,3059.2,3059.1,0.1902]
[1764340996036,0.002,3059.2,3059.1,3.4591353]
[1764340996236,0.002,3059.2,3059.1,1.37631817]
[1764340996439,0.002,3059.2,3058.4,0.897304]
[1764340996755,0.002,3059.2,3059.1,0.1902]
[1764340997052,0.002,3059.2,3059.1,0.4052]
[1764340997222,0.002,3059.2,3058.8,0.215]
[1764340997416,0.002,3059.2,3058.9,0.4918]
[1764340997730,0.002,3059.2,3059.1,0.1902]
[1764340997922,0.002,3059.2,3059.1,3.4591353]
[1764340998118,0.002,3059.2,3059.1,4.67293331]
[1764340998349,0.002,3059.2,3059.1,5.80403142]
[1764340999022,0.002,3059.2,3059.1,4.90672742]
[1764340999223,0.002,3059.2,3059.1,3.4591353]
[1764340999423,0.002,3059.2,3059.1,3.9509353]
[1764340999857,0.0976,3060.3,3059.1,7.2198706]
[1764340999858,0.1,3060.1,3059.1,7.2198706]
[1764341000165,0.00949886,3060.0,3059.1,3.4591353]
[1764341000523,0.00949886,3060.0,3059.1,6.7280706]
[1764341000859,0.00949886,3060.0,3059.1,7.47155766]
[1764341001053,0.09941497,3060.1,3059.1,10.74049296]
[1764341001480,0.30002887,3060.0,3059.1,10.74049296]
[1764341001685,0.00949886,3060.1,3059.2,0.4918]
[1764341001859,0.30002887,3060.0,3059.1,7.47155766]
[1764341002058,6.64479659,3060.1,3059.1,7.47155766]
[1764341002059,0.30952773,3059.9,3059.1,4.20262236]
[1764341002259,0.30002887,3059.8,3059.1,3.4591353]
[1764341002465,0.00949886,3059.7,3058.3,0.4918]
[1764341002685,0.39944384,3059.6,3058.7,0.215]
[1764341002981,0.00949886,3059.5,3058.8,0.03269255]
[1764341003179,0.00949886,3059.5,3058.7,0.215]
[1764341003754,0.09941497,3059.3,3058.2,6.53979464]
[1764341003948,3.56892173,3059.2,3058.4,3.26968349]
[1764341004173,0.30002887,3059.1,3058.4,3.26968349]
[1764341004488,0.30002887,3059.1,3058.5,0.4918]
[1764341004685,0.30002887,3059.7,3059.0,0.1902]
[1764341004890,0.30002887,3059.8,3059.1,0.65319335]
[1764341005089,0.30033852,3060.4,3059.3,0.405504]
[1764341005293,0.002,3060.5,3059.3,0.43819121]
[1764341005457,0.002,3060.5,3060.1,1.13109811]
[1764341005654,0.002,3060.5,3060.4,0.595704]
[1764341005855,0.30983738,3061.8,3060.5,0.405504]
[1764341005856,0.30033852,3061.8,3060.5,0.405504]
[1764341006056,0.00949886,3061.7,3060.7,0.72559411]
[1764341006290,0.30033852,3061.8,3060.8,0.215]
[1764341006589,0.30033852,3061.9,3061.0,0.405504]
[1764341006951,0.00949886,3061.8,3060.8,0.215]
[1764341007156,0.09941497,3061.7,3060.7,0.72559411]
[1764341007389,0.09941497,3061.7,3060.8,0.215]
[1764341007590,0.4728,3061.6,3060.4,0.1902]
[1764341007798,0.4728,3061.6,3060.0,0.1902]
[1764341007799,0.09941497,3061.4,3060.0,0.1902]
[1764341007996,0.09941497,3061.0,3059.9,0.215]
[1764341008292,0.00869886,3060.9,3060.1,0.1902]
[1764341008461,0.09941497,3060.8,3059.8,3.67337598]
[1764341008657,0.09941497,3060.8,3059.8,7.35808104]
[1764341008871,0.1859,3060.7,3059.9,0.0326808]
[1764341009170,0.63887773,3061.8,3059.9,0.0326808]
[1764341009171,0.09941497,3061.6,3060.0,0.405504]
[1764341009490,0.09941497,3061.3,3060.0,0.405504]
[1764341009678,0.10811383,3061.2,3060.1,0.1902]
[1764341009883,0.00869886,3061.2,3060.1,0.1902]
[1764341010191,0.00869886,3061.3,3060.3,6.53530698]
[1764341010390,0.00869886,3061.3,3060.4,0.9177107]
[1764341010697,0.00869886,3061.3,3060.4,1.4095107]
[1764341010895,6.5410175,3061.7,3060.4,1.4095107]
[1764341011096,0.39903795,3061.6,3060.4,1.4095107]
[1764341011296,0.29962298,3061.6,3060.5,0.897304]
[1764341011482,0.09941497,3061.7,3060.6,0.25406088]
[1764341011802,0.00869886,3061.6,3060.6,0.74586088]
[1764341012162,0.00869886,3061.6,3060.7,7.0262529]
[1764341013267,0.09941497,3061.4,3060.2,3.26775498]
[1764341013466,0.00869886,3061.3,3059.8,0.6067176]
[1764341013696,0.09941497,3061.0,3060.2,0.0326776]
[1764341013901,0.00869886,3060.9,3060.3,0.03267653]
[1764341014124,0.1859,3060.9,3060.3,3.26765349]
[1764341014399,0.00869886,3060.8,3060.1,3.26777785]
[1764341014700,0.1859,3061.0,3060.1,3.26777785]
[1764341014701,0.00869886,3060.9,3060.2,0.0326776]
[1764341014926,0.09941497,3061.6,3060.2,0.5244776]
[1764341015202,0.09941497,3061.6,3060.3,0.405504]
[1764341015203,0.00869886,3061.5,3060.3,0.405504]
[1764341015620,0.00869886,3061.5,3060.3,0.897304]
[1764341016076,0.09941497,3061.4,3060.3,0.4918]
[1764341016279,0.10811383,3061.3,3060.4,3.30022218]
[1764341016494,0.7722165,3061.3,3060.4,3.30022218]
[1764341016699,0.00869886,3061.3,3060.4,6.53509344]
[1764341017275,0.10811383,3061.3,3060.4,3.26754672]
[1764341017775,0.48149886,3061.3,3060.2,3.26766467]
[1764341018006,0.2999205,3061.2,3060.3,0.24767653]
[1764341018178,0.00869886,3061.1,3060.4,3.26754672]
[1764341018380,3.27550248,3061.1,3060.5,0.03267439]
[1764341018977,3.37491745,3061.1,3060.3,3.48258954]
[1764341019177,3.37491745,3061.1,3060.4,0.03267546]
[1764341019398,0.30038611,3061.0,3060.4,0.03267546]
[1764341019877,0.00869886,3061.1,3060.4,0.03267546]
[1764341020105,0.30038611,3061.2,3060.4,0.03267546]
[1764341020106,0.30038611,3061.2,3060.4,0.71096731]
[1764341020305,0.30038611,3061.4,3060.5,6.53487992]
[1764341020515,0.00869886,3061.5,3060.6,0.03267333]
[1764341020714,0.30038611,3061.4,3060.6,0.03267333]
[1764341021008,0.30038611,3061.4,3060.7,0.4642]
[1764341021180,3.26605685,3061.8,3060.8,0.215]
[1764341021382,0.09941497,3061.6,3060.7,0.215]
[1764341021708,0.30908497,3061.5,3060.7,0.215]
[1764341021908,0.30038611,3061.6,3061.5,0.1881]
[1764341022114,0.30908497,3061.9,3061.5,0.1881]
[1764341022412,0.002,3061.8,3061.5,3.26636932]
[1764341022704,3.67655258,3061.8,3060.8,0.215]
[1764341022906,0.30038611,3061.7,3060.9,0.03267012]
[1764341023107,0.30908497,3061.6,3060.9,0.03267012]
[1764341023313,0.00869886,3061.6,3060.9,0.03267012]
[1764341023477,0.00869886,3061.6,3060.8,0.215]
[1764341023478,0.30038611,3061.5,3060.8,0.215]
[1764341023805,0.30038611,3061.5,3060.9,0.03267012]
[1764341024195,3.56665231,3061.6,3060.9,3.29967087]
[1764341024407,0.30038611,3061.5,3060.9,6.56668384]
[1764341024610,0.30038611,3061.4,3060.9,6.56668384]
[1764341024775,0.77708611,3061.5,3060.9,0.03267012]
[1764341024976,0.30908497,3061.4,3060.7,3.73142645]
[1764341025211,0.30908497,3061.4,3060.8,0.03267119]
[1764341025212,0.30038611,3061.3,3060.8,0.03267119]
[1764341025418,0.30038611,3061.2,3060.7,3.94642645]
[1764341025580,0.30038611,3061.1,3060.7,0.4642]
[1764341025780,0.30038611,3061.0,3060.7,0.4642]
[1764341026015,0.48539886,3061.2,3060.7,0.4642]
[1764341026016,0.30038611,3060.9,3060.7,0.4642]
[1764341026216,3.56721826,3061.1,3060.5,3.48241458]
[1764341026400,0.30038611,3061.0,3060.6,0.03267333]
[1764341026604,0.30038611,3060.9,3060.6,0.03267333]
[1764341026804,0.30038611,3061.0,3060.5,3.48242719]
[1764341027011,0.30038611,3060.9,3060.5,3.48242719]
[1764341027207,0.30038611,3061.0,3060.5,3.48242719]
[1764341027405,0.30038611,3060.9,3060.5,3.94252448]
[1764341027596,0.30038611,3061.1,3060.6,0.215]
[1764341027783,0.30038611,3061.0,3060.6,0.215]
[1764341027988,0.30038611,3060.9,3060.7,0.03267226]
[1764341028182,0.30038611,3061.4,3060.8,6.5342394]
[1764341028387,0.30038611,3061.3,3060.9,0.03267012]
[1764341028731,0.30038611,3061.2,3060.9,0.49687012]
[1764341029024,0.30038611,3061.6,3060.9,1.51552292]
[1764341029212,0.30038611,3061.5,3061.1,0.1881]
[1764341029515,0.30038611,3061.4,3061.1,0.4031]
[1764341029733,0.30038611,3061.3,3060.8,3.2671197]
[1764341029888,0.30038611,3061.2,3060.9,0.215]
[1764341030090,0.30038611,3061.1,3060.4,6.53608482]
[1764341030327,0.30038611,3061.0,3060.5,6.53477998]
[1764341030490,0.30038611,3060.9,3060.5,6.53477998]
[1764341030809,0.30038611,3060.8,3060.6,0.03267333]
[1764341031015,0.69993905,3061.2,3060.6,0.03267333]
[1764341031016,0.30038611,3060.7,3060.6,0.215]
[1764341031286,0.99062602,3061.1,3060.5,3.26734002]
[1764341031483,0.29958611,3061.0,3060.6,1.17847333]
[1764341031709,0.09941497,3061.5,3060.6,0.98642533]
[1764341032028,0.1851,3060.7,3060.4,0.001]
[1764341032317,0.09941497,3061.2,3060.4,0.001]
[1764341032520,1.17645627,3061.4,3060.4,0.001]
[1764341032521,0.00869886,3061.3,3060.6,0.4666]
[1764341032709,0.69975627,3061.7,3061.2,0.1881]
[1764341033034,0.69975627,3061.7,3060.7,0.71187226]
[1764341033035,0.70175627,3061.8,3061.0,0.215]
[1764341033220,0.69105741,3061.7,3061.0,0.215]
[1764341033518,0.69105741,3061.7,3061.1,0.215]
[1764341033724,0.69105741,3061.7,3060.8,0.4642]
[1764341033896,0.69105741,3061.7,3060.9,0.215]
[1764341034304,0.69105741,3061.6,3061.1,6.53359902]
[1764341034619,0.69105741,3061.5,3061.0,6.74880468]
[1764341034823,0.69105741,3061.4,3061.1,0.68496799]
[1764341035018,0.69105741,3061.7,3061.1,0.68496799]
[1764341035322,0.69105741,3061.6,3061.1,0.03266799]
[1764341035523,0.69105741,3061.5,3061.0,0.03266906]
[1764341035824,0.69105741,3061.4,3061.0,0.03266906]
[1764341036025,0.69105741,3061.3,3060.9,6.53402594]
[1764341036223,0.69105741,3061.2,3060.9,6.53402594]
[1764341036394,3.95723477,3061.7,3060.9,6.53402594]
[1764341036730,0.69975627,3061.6,3060.9,6.99822594]
[1764341036944,0.69105741,3061.5,3060.9,3.73121297]
[1764341037102,0.69105741,3061.4,3060.9,6.99822594]
[1764341037423,0.69105741,3061.5,3061.0,0.49686906]
[1764341037793,0.69105741,3061.7,3061.0,0.49686906]
[1764341038096,0.69105741,3061.6,3061.0,0.49686906]
[1764341038296,0.01069886,3061.8,3061.2,6.5333856]
[1764341038297,0.69105741,3061.5,3061.2,6.5333856]
[1764341038492,0.69105741,3061.7,3061.2,6.56605252]
[1764341038696,0.69545055,3061.7,3061.4,0.4666]
[1764341038898,0.69545055,3061.7,3061.5,0.215]
[1764341039110,0.69545055,3061.7,3061.5,0.6792]
[1764341039310,0.002,3061.8,3061.5,0.6792]
[1764341039510,0.002,3061.8,3061.5,0.215]
[1764341039816,0.69745055,3061.8,3061.5,0.215]
[1764341040009,0.002,3061.8,3061.5,0.215]
[1764341040205,0.002,3061.8,3061.5,0.4642]
[1764341040440,0.002,3061.8,3061.7,3.73275932]
[1764341040622,0.002,3061.8,3061.7,4.50058157]
[1764341041134,0.002,3061.8,3061.7,3.26615932]
[1764341041333,0.002,3061.8,3061.2,3.26664964]
[1764341041334,0.69745055,3061.8,3061.0,3.73109317]
[1764341041516,0.69545055,3061.7,3061.1,0.24766799]
[1764341041714,0.69545055,3061.6,3061.1,0.24766799]
[1764341041920,0.69545055,3061.7,3061.1,0.24766799]
[1764341042213,0.69545055,3061.6,3061.1,0.03266799]
[1764341042441,0.69545055,3061.6,3061.2,3.2666928]
[1764341042781,0.69545055,3061.6,3061.3,0.03266586]
[1764341042945,0.70414941,3061.6,3061.2,0.03266692]
[1764341043133,0.69545055,3061.6,3061.2,0.49686692]
[1764341043447,0.30250589,3061.5,3061.2,0.49686692]
[1764341043652,0.0814,3061.3,3060.5,0.001]
[1764341043838,0.48139886,3061.5,3060.5,0.24867439]
[1764341043839,1.10207141,3061.2,3060.5,0.24867439]
[1764341044035,0.99795644,3061.1,3060.5,0.24867439]
[1764341044236,0.99795644,3061.0,3060.5,6.78352292]
[1764341044435,0.99795644,3060.9,3060.6,0.215]
[1764341044640,0.00869886,3061.5,3060.5,7.21430082]
[1764341044641,0.30250589,3060.8,3060.7,0.215]
[1764341044945,0.30250589,3060.8,3060.5,3.26840857]
[1764341045254,0.30250589,3060.8,3060.6,0.03267333]
[1764341045453,0.30250589,3060.7,3060.5,3.26840857]
[1764341045627,0.69680445,3060.9,3060.6,0.24767333]
[1764341045814,0.30251427,3060.8,3060.6,0.03267333]
[1764341046014,0.30251427,3060.8,3060.5,0.001]
[1764341046015,0.48761427,3060.7,3060.5,0.001]
[1764341046246,0.30251427,3060.6,3060.5,3.26843996]
[1764341047862,0.30251427,3060.6,3060.5,5.33260983]
[1764341048159,0.002,3061.8,3060.6,0.72559411]
[1764341048160,0.09941497,3061.6,3060.6,0.72559411]
[1764341048360,0.01069886,3061.8,3061.0,0.72559411]
[1764341048361,0.30254092,3061.5,3061.0,0.72559411]
[1764341048526,0.30254092,3061.4,3061.1,0.215]
[1764341048866,0.30254092,3061.3,3061.0,0.215]
[1764341049033,0.4637,3061.1,3060.8,0.215]
[1764341049359,0.30254092,3061.0,3060.8,0.215]
[1764341049526,0.00869886,3061.4,3060.5,6.56850121]
[1764341049527,0.30256403,3060.9,3060.5,6.53582682]
[1764341049726,0.00869886,3061.6,3060.6,0.215]
[1764341049727,0.30256403,3060.8,3060.6,0.215]
[1764341050029,0.30256403,3060.7,3060.6,0.24767333]
[1764341050563,0.30256403,3060.7,3060.6,3.51500653]
[1764341050726,0.30256403,3060.7,3060.6,4.19344587]
[1764341050923,0.30256403,3060.7,3060.6,3.51500653]
[1764341051156,0.30256403,3060.7,3060.6,0.215]
[1764341051558,0.30256403,3060.7,3060.5,3.30110722]
[1764341051762,0.30256403,3060.6,3060.5,3.51610722]
[1764341052358,0.30256403,3060.6,3060.5,3.48343283]
[1764341053628,0.30256403,3060.6,3060.5,3.51610722]
[1764341053829,0.30256403,3060.6,3060.5,4.19457185]
[1764341054149,0.30274838,3061.4,3061.2,0.6952]
[1764341054350,0.30274838,3061.3,3061.2,0.215]
[1764341054531,0.30274838,3061.3,3061.2,3.4816928]
[1764341054728,0.30274838,3061.3,3061.2,3.9784928]
[1764341055171,0.30274838,3061.3,3061.2,0.215]
[1764341055330,0.30274838,3061.3,3061.2,3.4816928]
[1764341055531,0.30194838,3061.3,3061.2,3.4816928]
[1764341056035,0.002,3061.7,3061.2,6.7483856]
[1764341056236,0.002,3061.7,3061.2,7.2451856]
[1764341056465,0.002,3061.7,3061.2,0.7118]
[1764341056665,0.002,3061.7,3061.2,3.97845449]
[1764341056870,0.002,3061.7,3061.2,7.24514729]
[1764341057569,0.002,3061.7,3061.6,0.4968]
[1764341057864,0.002,3061.7,3061.6,0.7118]
[1764341058061,0.002,3061.7,3061.6,0.9543]
[1764341058241,0.002,3061.7,3061.6,1.1693]
[1764341058440,0.002,3061.7,3061.6,5.16116011]
[1764341058640,0.002,3061.7,3061.6,6.00391327]
[1764341058955,0.002,3061.7,3061.6,6.40941727]
[1764341059934,0.002,3062.1,3061.7,2.08539811]
[1764341060164,0.002,3062.1,3062.0,0.4968]
[1764341060580,0.002,3062.1,3062.0,3.97763932]
[1764341060873,0.002,3062.1,3062.0,6.28424614]
[1764341061233,0.002,3063.8,3062.9,0.4968]
[1764341061429,0.002,3063.8,3063.3,0.6952]
[1764341061663,0.002,3063.8,3063.3,1.315704]
[1764341061883,0.002,3063.8,3063.3,0.6952]
[1764341062164,0.0985,3063.4,3062.5,0.4575]
[1764341062355,0.002,3063.4,3062.6,0.620504]
[1764341062556,0.002,3063.4,3062.9,0.72559411]
[1764341062861,0.002,3063.4,3063.0,0.215]
[1764341063030,0.002,3063.4,3063.3,0.1912]
[1764341063233,0.002,3063.4,3063.1,0.405504]
[1764341063459,0.002,3063.4,3063.2,0.215]
[1764341063665,0.002,3063.4,3062.9,0.72559411]
[1764341063838,0.002,3063.4,3062.8,6.52997256]
[1764341063839,0.5017,3063.4,3062.2,6.53125204]
[1764341064031,0.60111497,3063.4,3062.3,0.620504]
[1764341064233,0.5017,3063.4,3062.2,6.53125204]
[1764341064459,0.09941497,3063.1,3062.3,0.215]
[1764341064663,0.09941497,3063.1,3062.4,3.26541274]
[1764341065038,0.4997,3063.2,3062.4,6.53082548]
[1764341065272,3.76428725,3063.2,3062.4,3.26541274]
[1764341065645,3.76428725,3063.2,3062.3,3.48048058]
[1764341065850,3.86370222,3063.2,3062.3,3.48048058]
[1764341066161,3.86370222,3063.2,3062.3,6.53099996]
[1764341066362,4.57670954,3063.2,3062.4,0.215]
[1764341066865,4.57669542,3063.2,3062.4,3.48036755]
[1764341067067,0.59911497,3063.1,3062.3,0.215]
[1764341067448,0.4997,3063.1,3062.3,0.215]
[1764341067677,0.30129356,3063.0,3062.3,0.215]
[1764341068163,0.0976,3062.9,3062.1,0.1984]
[1764341068363,0.49830853,3062.9,3062.2,0.215]
[1764341068567,0.4997,3062.8,3062.2,0.215]
[1764341068771,0.30129356,3062.7,3062.2,0.215]
[1764341068969,0.30129356,3062.7,3062.2,3.48058641]
[1764341069186,3.36250394,3062.9,3062.2,0.215]
[1764341069382,3.36250394,3062.9,3061.8,0.1912]
[1764341069383,0.0498,3062.3,3061.4,0.1912]
[1764341069540,0.40070853,3062.5,3061.5,0.24766372]
[1764341069736,0.40070853,3062.5,3061.4,6.72415876]
[1764341069974,0.90040853,3062.5,3061.5,0.24766372]
[1764341070178,0.30129356,3062.4,3061.5,0.24766372]
[1764341070382,0.30129356,3062.4,3061.6,1.07200019]
[1764341070543,0.30129356,3062.4,3061.7,0.03266159]
[1764341070740,0.30129356,3062.3,3061.7,0.24766159]
[1764341070940,0.30129356,3062.3,3061.6,1.07200019]
[1764341070941,0.30129356,3062.2,3061.4,0.1912]
[1764341071176,0.30129356,3062.1,3061.5,0.72936372]
[1764341071379,3.5664097,3062.7,3061.5,0.72936372]
[1764341071551,0.30129356,3062.6,3061.5,0.72936372]
[1764341071751,0.30129356,3062.5,3061.5,0.6967]
[1764341071957,0.30129356,3062.4,3061.5,0.6967]
[1764341072171,0.30129356,3062.3,3061.6,0.215]
[1764341072343,0.30129356,3062.2,3061.6,0.215]
[1764341072543,0.30129356,3062.1,3061.3,0.72559411]
[1764341072865,0.4997,3062.4,3060.5,0.001]
[1764341072866,6.76649376,3061.4,3060.5,0.001]
[1764341073064,0.1944,3060.6,3060.5,0.001]
[1764341074444,0.54629356,3060.6,3060.5,0.001]
[1764341074645,0.215,3061.5,3060.5,7.51417992]
[1764341074960,0.1944,3062.3,3060.5,7.51417992]
[1764341074961,0.1846,3061.9,3061.4,0.6878]
[1764341075270,0.1846,3061.9,3061.4,0.215]
[1764341075271,0.30093917,3061.8,3061.4,0.215]
[1764341075474,0.30093917,3061.7,3061.1,0.1912]
[1764341075651,0.30093917,3061.6,3061.3,0.215]
[1764341075856,0.30093917,3061.8,3061.1,0.1912]
[1764341076062,0.30093917,3061.7,3061.1,0.4062]
[1764341076258,0.30093917,3061.6,3061.1,0.1912]
[1764341076587,0.30093917,3061.6,3060.9,0.215]
[1764341076588,0.30093917,3061.5,3060.9,0.215]
[1764341076794,0.30093917,3061.4,3060.9,0.215]
[1764341077008,0.30093917,3061.3,3060.9,3.48195428]
[1764341077152,0.30093917,3061.5,3060.9,3.48195428]
[1764341077351,3.86540831,3061.6,3060.7,3.26718146]
[1764341077352,0.30093917,3061.4,3060.7,3.26718146]
[1764341077558,0.40035414,3061.3,3060.5,0.001]
[1764341077862,0.30093917,3061.2,3060.5,0.001]
[1764341078063,0.30093917,3061.1,3060.5,3.26843977]
[1764341078272,0.30093917,3061.0,3060.5,3.92213873]
[1764341078460,0.30093917,3060.9,3060.5,7.18957869]
[1764341078655,0.30093917,3060.8,3060.6,0.03267333]
[1764341078893,0.30093917,3061.2,3060.7,3.26722645]
[1764341079190,0.30093917,3061.1,3060.6,3.26732883]
[1764341079390,0.30093917,3061.0,3060.6,3.26732883]
[1764341079558,0.30093917,3060.9,3060.6,3.30000216]
[1764341079755,0.30013917,3060.8,3060.6,7.16579045]
[1764341079954,0.4997,3061.3,3060.6,0.59845509]
[1764341079955,3.8657274,3061.3,3060.6,0.59845509]
[1764341080159,3.8657274,3061.3,3060.5,0.001]
[1764341080160,7.13233983,3061.3,3060.5,0.001]
[1764341080389,3.8657274,3061.3,3060.5,3.26839335]
[1764341080566,0.59911497,3061.3,3060.9,0.001]
[1764341080770,3.86579584,3061.3,3060.9,0.001]